[Event "SPICE Cup 2014"]
[Site "St. Louis"]
[Date "2014.10.23"]
[Round "5"]
[White "Naroditsky, Daniel"]
[Black "Kiewra, Keaton F"]
[Result "1/2-1/2"]
[ECO "E97"]
[WhiteElo "2601"]
[BlackElo "2391"]
[PlyCount "65"]
[EventDate "2014.??.??"]
[EventCountry "USA"]
[TimeControl "5400+30"]
[WhiteClock "0:16:13"]
[BlackClock "0:18:17"]

1. Nf3 {[%emt 0:00:00]} Nf6 {[%emt 0:00:24]} 2. c4 {[%emt 0:00:00]} g6 {[%emt
0:01:25]} 3. Nc3 {[%emt 0:00:10]} Bg7 {[%emt 0:01:11]} 4. e4 {[%emt 0:00:06]}
O-O {[%emt 0:00:34]} 5. d4 {[%emt 0:00:09]} d6 {[%emt 0:00:36]} 6. Be2 {[%emt
0:00:27]} e5 {[%emt 0:03:59]} 7. O-O {[%emt 0:00:09]} Nc6 {[%emt 0:02:22]} 8.
d5 {[%emt 0:00:51]} Ne7 {[%emt 0:00:06]} 9. Qc2 {[%emt 0:00:13]} Nh5 {[%emt 0:
04:57]} 10. Rd1 {[%emt 0:00:09]} f5 {[%emt 0:03:50]} 11. Ng5 {[%emt 0:00:42]}
Nf4 {[%emt 0:07:11]} 12. Bxf4 {[%emt 0:01:55]} exf4 {[%emt 0:00:12]} 13. Ne6 {
[%emt 0:12:20]} Bxe6 {[%emt 0:00:07]} 14. dxe6 {[%emt 0:00:03]} Bxc3 {[%emt 0:
07:12]} 15. bxc3 {[%emt 0:11:19]} Nc6 {[%emt 0:03:26]} 16. Qb3 {[%emt 0:10:02]}
Rb8 {[%emt 0:15:31]} 17. c5 {[%emt 0:02:23]} Qe7 {[%emt 0:00:29]} 18. cxd6 {
[%emt 0:01:37]} cxd6 {[%emt 0:00:06]} 19. Qd5 {[%emt 0:04:40]} fxe4 {[%emt 0:
05:21]} 20. Qxd6 {[%emt 0:00:24]} Rbe8 {[%emt 0:09:59]} 21. Bc4 {[%emt 0:06:44]
} Kg7 {[%emt 0:00:57]} 22. Rab1 {[%emt 0:03:55]} Qxd6 {[%emt 0:08:54]} 23. Rxd6
{[%emt 0:00:03]} Re7 {[%emt 0:00:28]} 24. Rd7 {[%emt 0:06:09]} b6 {[%emt 0:03:
14]} 25. Re1 {[%emt 0:06:38]} Rd8 {[%emt 0:02:32]} 26. Rxe7+ {[%emt 0:10:00]}
Nxe7 {[%emt 0:00:12]} 27. Rxe4 {[%emt 0:00:04]} Rd1+ {[%emt 0:00:18]} 28. Bf1 {
[%emt 0:00:02]} g5 {[%emt 0:00:24]} 29. h4 {[%emt 0:00:05]} h6 {[%emt 0:00:20]}
30. hxg5 {[%emt 0:00:03]} hxg5 {[%emt 0:00:04]} 31. g3 {[%emt 0:05:15]} fxg3 {
[%emt 0:00:35]} 32. fxg3 {[%emt 0:00:01]} Kf6 {[%emt 0:00:47]} 33. Kf2 {[%emt
0:03:39] Ke5} 1/2-1/2

[Event "SPICE Cup 2014"]
[Site "St. Louis"]
[Date "2014.10.23"]
[Round "5"]
[White "Yermolinsky, Alex"]
[Black "Bora, Safal"]
[Result "1-0"]
[ECO "A05"]
[WhiteElo "2516"]
[BlackElo "2328"]
[PlyCount "51"]
[EventDate "2014.??.??"]
[EventCountry "USA"]
[TimeControl "5400+30"]
[WhiteClock "0:05:53"]
[BlackClock "0:13:07"]

1. Nf3 {[%emt 0:00:00]} Nf6 {[%emt 0:00:00]} 2. c4 {[%emt 0:00:00]} g6 {[%emt
0:00:00]} 3. Nc3 {[%emt 0:00:00]} d5 {[%emt 0:00:00]} 4. cxd5 {[%emt 0:00:00]}
Nxd5 {[%emt 0:00:00]} 5. h4 {[%emt 0:00:14]} Bg7 {[%emt 0:00:10]} 6. h5 {[%emt
0:00:07]} Nc6 {[%emt 0:00:08]} 7. h6 {[%emt 0:11:39]} Bf6 {[%emt 0:00:06]} 8.
Ne4 {[%emt 0:00:01]} e5 {[%emt 0:03:26]} 9. Qa4 {[%emt 0:17:02]} O-O {[%emt 0:
10:33]} 10. Nxf6+ {[%emt 0:01:17]} Qxf6 {[%emt 0:01:08]} 11. g3 {[%emt 0:09:59]
} e4 {[%emt 0:04:27]} 12. Nh4 {[%emt 0:07:42]} Nd4 {[%emt 0:15:35]} 13. e3 {
[%emt 0:02:04]} Nf3+ {[%emt 0:02:20]} 14. Nxf3 {[%emt 0:01:04]} exf3 {[%emt 0:
10:50]} 15. Qh4 {[%emt 0:18:52]} Qe5 {[%emt 0:09:00]} 16. d4 {[%emt 0:01:52]}
Qd6 {[%emt 0:00:15]} 17. Bd2 {[%emt 0:00:16]} Bf5 {[%emt 0:04:18]} 18. Bc4 {
[%emt 0:12:13]} Nf6 {[%emt 0:05:22]} 19. Qf4 {[%emt 0:04:19]} Qb6 {[%emt 0:01:
32]} 20. g4 {[%emt 0:02:13]} Nxg4 {[%emt 0:01:06]} 21. Rg1 {[%emt 0:01:22]}
Qxb2 {[%emt 0:04:43]} 22. Rc1 {[%emt 0:01:45]} Nxe3 {[%emt 0:13:10]} 23. fxe3 {
[%emt 0:00:27]} Kh8 {[%emt 0:00:08]} 24. Qe5+ {[%emt 0:02:15]} f6 {[%emt 0:00:
11]} 25. Qe7 {[%emt 0:00:14]} f2+ {[%emt 0:00:55]} 26. Ke2 {[%emt 0:00:10]} 1-0

[Event "SPICE Cup 2014"]
[Site "St. Louis"]
[Date "2014.10.24"]
[Round "6"]
[White "Corrales Jimenez, Fidel"]
[Black "Santarius, Erik F"]
[Result "1-0"]
[ECO "A45"]
[WhiteElo "2532"]
[BlackElo "2296"]
[PlyCount "125"]
[EventDate "2014.??.??"]
[EventCountry "USA"]
[TimeControl "5400+30"]
[WhiteClock "1:15:20"]
[BlackClock "0:12:58"]

1. d4 {[%emt 0:00:00]} Nf6 {[%emt 0:00:00]} 2. Bg5 {[%emt 0:00:00]} e6 {[%emt
0:00:00]} 3. e4 {[%emt 0:00:25]} h6 {[%emt 0:00:14]} 4. Bxf6 {[%emt 0:00:09]}
Qxf6 {[%emt 0:00:10]} 5. Qd2 {[%emt 0:00:45]} c5 {[%emt 0:06:00]} 6. c3 {[%emt
0:01:39]} cxd4 {[%emt 0:02:34]} 7. cxd4 {[%emt 0:00:04]} b6 {[%emt 0:05:19]} 8.
Nc3 {[%emt 0:01:15]} Ba6 {[%emt 0:07:24]} 9. Bxa6 {[%emt 0:02:03]} Nxa6 {[%emt
0:00:08]} 10. Nf3 {[%emt 0:00:07]} Be7 {[%emt 0:03:56]} 11. O-O {[%emt 0:00:57]
} O-O {[%emt 0:02:20]} 12. Ne5 {[%emt 0:01:36]} Rfd8 {[%emt 0:01:43]} 13. f4 {
[%emt 0:00:24]} Bd6 {[%emt 0:04:36]} 14. Nb5 {[%emt 0:02:45]} Qe7 {[%emt 0:04:
20]} 15. Rac1 {[%emt 0:03:23]} Bb4 {[%emt 0:11:23]} 16. Qe2 {[%emt 0:00:59]}
Qe8 {[%emt 0:02:49]} 17. f5 {[%emt 0:02:09]} f6 {[%emt 0:04:02]} 18. Ng4 {
[%emt 0:00:22]} exf5 {[%emt 0:13:28]} 19. Rxf5 {[%emt 0:00:15]} Qg6 {[%emt 0:
06:52]} 20. Rcf1 {[%emt 0:02:19]} Rf8 {[%emt 0:03:23]} 21. Ne3 {[%emt 0:01:19]}
Rae8 {[%emt 0:01:35]} 22. Nd5 {[%emt 0:00:13]} Kh8 {[%emt 0:00:40]} 23. Nxa7 {
[%emt 0:01:00]} Bd6 {[%emt 0:02:00]} 24. Qxa6 {[%emt 0:01:29]} Rxe4 {[%emt 0:
00:11]} 25. Qd3 {[%emt 0:00:47]} Rxd4 {[%emt 0:02:10]} 26. Qf3 {[%emt 0:02:10]}
Rd2 {[%emt 0:01:26]} 27. Nb5 {[%emt 0:00:29]} Bc5+ {[%emt 0:00:30]} 28. Kh1 {
[%emt 0:00:02]} Rxb2 {[%emt 0:00:20]} 29. Nbc3 {[%emt 0:00:05]} Re8 {[%emt 0:
01:59]} 30. h4 Re6 31. h5 Qf7 32. Ne4 Rxa2 33. Nf4 Ra3 34. Ng6+ Kh7 35. Qg4 Ra5
36. Nxc5 Rxc5 37. Rxc5 bxc5 38. Qf5 Kg8 39. Qxc5 Re8 40. Rf5 Kh7 41. Qd5 Qe6
42. Kh2 Rc8 43. Qd3 Kg8 44. Rd5 Rd8 45. Nh4 Qg4 46. Qg3 Qxg3+ 47. Kxg3 Ra8 48.
Nf5 Ra7 49. Rd4 Kf7 50. Re4 d5 51. Nd6+ Kg8 52. Re8+ Kh7 53. Nf5 Ra3+ 54. Kh2
Ra4 55. Kh3 Rf4 56. Nh4 Rf1 57. g4 Rh1+ 58. Kg3 Rg1+ 59. Kf3 Rf1+ 60. Kg2 Rf4
61. Kg3 Re4 62. Rxe4 dxe4 63. Kf4 1-0

[Event "SPICE Cup 2014"]
[Site "St. Louis"]
[Date "2014.10.24"]
[Round "6"]
[White "Nyzhnyk, Illya"]
[Black "Kiewra, Keaton F"]
[Result "1-0"]
[ECO "D31"]
[WhiteElo "2613"]
[BlackElo "2391"]
[PlyCount "73"]
[EventDate "2014.??.??"]
[EventCountry "USA"]
[TimeControl "5400+30"]
[WhiteClock "0:36:13"]
[BlackClock "0:13:03"]

1. d4 {[%emt 0:00:00]} d5 {[%emt 0:00:00]} 2. c4 {[%emt 0:00:00]} e6 {[%emt 0:
00:00]} 3. Nc3 {[%emt 0:00:05]} Be7 {[%emt 0:00:00]} 4. cxd5 {[%emt 0:01:12]}
exd5 {[%emt 0:00:00]} 5. Bf4 {[%emt 0:00:05]} c6 {[%emt 0:00:09]} 6. Qc2 {
[%emt 0:00:26]} g6 {[%emt 0:05:14]} 7. e3 {[%emt 0:06:01]} Bf5 {[%emt 0:00:47]}
8. Bd3 {[%emt 0:00:05]} Bxd3 {[%emt 0:00:11]} 9. Qxd3 {[%emt 0:00:03]} Bd6 {
[%emt 0:04:09]} 10. Nge2 {[%emt 0:00:05]} Ne7 {[%emt 0:01:13]} 11. Bg5 {[%emt
0:04:24]} Nd7 {[%emt 0:10:11]} 12. e4 {[%emt 0:03:33]} dxe4 {[%emt 0:01:52]}
13. Nxe4 {[%emt 0:00:07]} Qc7 {[%emt 0:14:42]} 14. N2c3 {[%emt 0:06:50]} O-O {
[%emt 0:06:15]} 15. h4 {[%emt 0:00:22]} Rfe8 {[%emt 0:04:58]} 16. h5 {[%emt 0:
09:33]} Nd5 {[%emt 0:01:38]} 17. Kf1 {[%emt 0:00:07]} N7b6 {[%emt 0:09:37]} 18.
hxg6 {[%emt 0:22:05]} fxg6 {[%emt 0:00:10]} 19. Qh3 {[%emt 0:00:03]} Bf8 {
[%emt 0:01:36]} 20. Rd1 {[%emt 0:01:36]} h5 {[%emt 0:07:12]} 21. g4 {[%emt 0:
00:28]} Qd7 {[%emt 0:02:10]} 22. gxh5 {[%emt 0:00:23]} Qxh3+ {[%emt 0:00:11]}
23. Rxh3 {[%emt 0:00:04]} gxh5 {[%emt 0:00:11]} 24. Rdd3 {[%emt 0:02:20]} Re6 {
[%emt 0:00:54]} 25. Rxh5 {[%emt 0:01:22]} Rae8 {[%emt 0:00:54]} 26. Nc5 {[%emt
0:01:53]} Re1+ {[%emt 0:05:21]} 27. Kg2 {[%emt 0:00:15]} Nxc3 {[%emt 0:00:31]}
28. Rxc3 {[%emt 0:00:04]} Kf7 {[%emt 0:09:15]} 29. Rg3 {[%emt 0:01:42]} Bxc5 {
[%emt 0:00:38]} 30. dxc5 {[%emt 0:00:09]} Nd7 {[%emt 0:00:10]} 31. Rh7+ {[%emt
0:00:28]} Ke6 {[%emt 0:00:06]} 32. b4 {[%emt 0:00:14]} a5 {[%emt 0:02:11]} 33.
Bd2 {[%emt 0:04:32]} Re2 {[%emt 0:00:18]} 34. Rd3 {[%emt 0:00:58]} Ne5 {[%emt
0:01:27]} 35. Rd6+ {[%emt 0:00:09]} Kf5 {[%emt 0:00:05]} 36. Rh5+ {[%emt 0:00:
06]} Ke4 {[%emt 0:00:41]} 37. Rh4+ {[%emt 0:00:28] Kd5} 1-0

[Event "SPICE Cup 2014"]
[Site "St. Louis"]
[Date "2014.10.24"]
[Round "6"]
[White "Preotu, Razvan"]
[Black "Durabalyi, Vasif"]
[Result "1-0"]
[ECO "B67"]
[WhiteElo "2405"]
[BlackElo "2624"]
[PlyCount "61"]
[EventDate "2014.??.??"]
[EventCountry "USA"]
[TimeControl "5400+30"]
[WhiteClock "0:16:04"]
[BlackClock "0:18:36"]

1. e4 {[%emt 0:00:00]} c5 {[%emt 0:00:09]} 2. Nf3 {[%emt 0:00:00]} d6 {[%emt 0:
00:35]} 3. d4 {[%emt 0:00:12]} cxd4 {[%emt 0:00:31]} 4. Nxd4 {[%emt 0:00:24]}
Nf6 {[%emt 0:00:30]} 5. Nc3 {[%emt 0:00:24]} Nc6 {[%emt 0:00:44]} 6. Bg5 {
[%emt 0:00:31]} e6 {[%emt 0:00:17]} 7. Qd2 {[%emt 0:00:25]} a6 {[%emt 0:00:24]}
8. O-O-O {[%emt 0:00:30]} Bd7 {[%emt 0:00:25]} 9. f3 {[%emt 0:04:43]} Rc8 {
[%emt 0:04:57]} 10. h4 {[%emt 0:00:41]} h6 {[%emt 0:02:01]} 11. Be3 {[%emt 0:
00:15]} h5 {[%emt 0:00:31]} 12. Bg5 {[%emt 0:02:19]} Be7 {[%emt 0:02:52]} 13.
Kb1 {[%emt 0:00:51]} Qa5 {[%emt 0:06:07]} 14. Nxc6 {[%emt 0:07:00]} Bxc6 {
[%emt 0:00:48]} 15. Bd3 {[%emt 0:06:53]} b5 {[%emt 0:00:34]} 16. Rhe1 {[%emt 0:
04:18]} Bb7 {[%emt 0:08:04]} 17. a3 {[%emt 0:02:18]} Qd8 {[%emt 0:08:54]} 18.
Ne2 {[%emt 0:10:57]} Nd7 {[%emt 0:07:14]} 19. Ng3 {[%emt 0:05:38]} Bxg5 {[%emt
0:11:53]} 20. hxg5 {[%emt 0:00:13]} h4 {[%emt 0:00:57]} 21. Nf5 {[%emt 0:11:49]
} exf5 {[%emt 0:04:09]} 22. exf5+ {[%emt 0:00:13]} Kf8 {[%emt 0:01:08]} 23.
Bxb5 {[%emt 0:00:38]} Ne5 {[%emt 0:12:28]} 24. Rxe5 {[%emt 0:00:48]} axb5 {
[%emt 0:00:18]} 25. Rxb5 {[%emt 0:04:02]} Bc6 {[%emt 0:00:05]} 26. Rb4 {[%emt
0:07:56]} h3 {[%emt 0:01:04]} 27. Rh1 {[%emt 0:08:43]} Kg8 {[%emt 0:04:26]} 28.
Rd4 {[%emt 0:00:49]} Rh5 {[%emt 0:02:07]} 29. Rxh3 {[%emt 0:05:13]} Qxg5 {
[%emt 0:02:08]} 30. Qxg5 {[%emt 0:00:33]} Rxg5 {[%emt 0:00:04]} 31. Rdh4 {
[%emt 0:00:10]} 1-0

[Event "SPICE Cup 2014"]
[Site "St. Louis"]
[Date "2014.10.24"]
[Round "6"]
[White "Robson, Ray"]
[Black "Yermolinsky, Alex"]
[Result "1-0"]
[ECO "C88"]
[WhiteElo "2628"]
[BlackElo "2516"]
[PlyCount "74"]
[EventDate "2014.??.??"]
[EventCountry "USA"]
[TimeControl "5400+30"]
[WhiteClock "0:10:42"]
[BlackClock "0:02:19"]

1. e4 {[%emt 0:00:00]} e5 {[%emt 0:00:00]} 2. Nf3 {[%emt 0:00:00]} Nc6 {[%emt
0:00:00]} 3. Bb5 {[%emt 0:00:21]} a6 {[%emt 0:00:29]} 4. Ba4 {[%emt 0:00:15]}
Nf6 {[%emt 0:00:10]} 5. O-O {[%emt 0:00:24]} Be7 {[%emt 0:01:48]} 6. Re1 {
[%emt 0:00:31]} b5 {[%emt 0:00:10]} 7. Bb3 {[%emt 0:00:07]} O-O {[%emt 0:00:06]
} 8. a4 {[%emt 0:01:02]} Bb7 {[%emt 0:05:54]} 9. d3 {[%emt 0:00:44]} d6 {[%emt
0:00:04]} 10. Nbd2 {[%emt 0:01:12]} Na5 {[%emt 0:01:31]} 11. Ba2 {[%emt 0:00:
23]} c5 {[%emt 0:00:14]} 12. Nf1 {[%emt 0:01:25]} b4 {[%emt 0:02:35]} 13. Bg5 {
[%emt 0:06:11]} Rb8 {[%emt 0:13:02]} 14. Ne3 {[%emt 0:04:05]} Bc8 {[%emt 0:02:
05]} 15. Nd2 {[%emt 0:03:29]} Be6 {[%emt 0:03:11]} 16. Nf5 {[%emt 0:22:14]} h6
{[%emt 0:32:34]} 17. Bh4 {[%emt 0:09:23]} Bxf5 {[%emt 0:03:19]} 18. exf5 {
[%emt 0:00:30]} Qd7 {[%emt 0:00:31]} 19. Qf3 {[%emt 0:07:54]} Nc6 {[%emt 0:00:
29]} 20. c3 {[%emt 0:00:31]} bxc3 {[%emt 0:02:59]} 21. bxc3 {[%emt 0:00:13]}
Rb2 {[%emt 0:03:02]} 22. Nc4 {[%emt 0:03:01]} Rc2 {[%emt 0:07:52]} 23. Bxf6 {
[%emt 0:03:03]} Bxf6 {[%emt 0:00:34]} 24. Nb6 {[%emt 0:00:36]} Qe8 {[%emt 0:03:
32]} 25. Nd5 {[%emt 0:03:49]} Kh7 {[%emt 0:06:06]} 26. Reb1 {[%emt 0:09:01]} e4
{[%emt 0:02:47]} 27. Nxf6+ {[%emt 0:01:26]} gxf6 {[%emt 0:00:02]} 28. dxe4 {
[%emt 0:00:08]} Ne5 {[%emt 0:02:15]} 29. Qd1 {[%emt 0:04:39]} Rxc3 {[%emt 0:00:
07]} 30. Qxd6 {[%emt 0:00:18]} Qd8 {[%emt 0:00:57]} 31. Qxd8 {[%emt 0:00:50]}
Rxd8 {[%emt 0:00:02]} 32. Bd5 {[%emt 0:00:09]} c4 {[%emt 0:01:47]} 33. Rc1 {
[%emt 0:02:09]} Rd3 {[%emt 0:02:34]} 34. f4 {[%emt 0:03:30]} Ng4 {[%emt 0:00:
18]} 35. Bxc4 {[%emt 0:00:41]} Rd2 {[%emt 0:00:21]} 36. Re1 {[%emt 0:01:26]}
Rc8 {[%emt 0:02:14]} 37. Bxa6 {[%emt 0:02:08]} Ne5 1-0

[Event "SPICE Cup 2014"]
[Site "St. Louis"]
[Date "2014.10.24"]
[Round "6"]
[White "Sevian, Samuel"]
[Black "Naroditsky, Daniel"]
[Result "0-1"]
[ECO "C65"]
[WhiteElo "2484"]
[BlackElo "2601"]
[PlyCount "132"]
[EventDate "2014.??.??"]
[EventCountry "USA"]
[TimeControl "5400+30"]
[WhiteClock "0:03:02"]
[BlackClock "0:05:30"]

1. e4 {[%emt 0:04:43]} e5 {[%emt 0:00:00]} 2. Nf3 {[%emt 0:00:07]} Nc6 {[%emt
0:00:00]} 3. Bb5 {[%emt 0:00:13]} Nf6 {[%emt 0:00:28]} 4. d3 {[%emt 0:00:47]}
d6 5. c3 {[%emt 0:02:35]} Bd7 {[%emt 0:00:28]} 6. O-O {[%emt 0:01:09]} g6 {
[%emt 0:00:07]} 7. Re1 {[%emt 0:00:56]} Bg7 {[%emt 0:00:03]} 8. Nbd2 {[%emt 0:
01:13]} a6 {[%emt 0:00:06]} 9. Ba4 {[%emt 0:00:26]} O-O {[%emt 0:00:09]} 10.
Nf1 {[%emt 0:00:42]} Nh5 {[%emt 0:04:21]} 11. h3 {[%emt 0:09:39]} Qe8 {[%emt 0:
07:23]} 12. Bb3 {[%emt 0:04:42]} Kh8 {[%emt 0:14:32]} 13. Ne3 {[%emt 0:08:21]}
f5 {[%emt 0:06:37]} 14. Nd5 {[%emt 0:22:11]} Rc8 {[%emt 0:04:50]} 15. d4 {
[%emt 0:01:34]} f4 {[%emt 0:02:16]} 16. Bc2 {[%emt 0:03:30]} g5 {[%emt 0:12:37]
} 17. dxe5 {[%emt 0:04:36]} Nxe5 {[%emt 0:04:07]} 18. Nd4 {[%emt 0:02:01]} Nf6
{[%emt 0:05:36]} 19. f3 {[%emt 0:21:04]} c5 {[%emt 0:09:21]} 20. Nf5 {[%emt 0:
03:08]} Bxf5 {[%emt 0:01:03]} 21. Nxf6 {[%emt 0:00:09]} Bxf6 {[%emt 0:00:25]}
22. exf5 d5 23. c4 {[%emt 0:00:37]} dxc4 {[%emt 0:08:41]} 24. Bd2 {[%emt 0:01:
08]} Rd8 {[%emt 0:01:06]} 25. Qc1 {[%emt 0:00:50]} Qh5 {[%emt 0:02:19]} 26. Be4
{[%emt 0:02:57]} b5 {[%emt 0:00:01]} 27. Bc3 {[%emt 0:01:21]} Qf7 {[%emt 0:00:
53]} 28. Qc2 {[%emt 0:00:48]} b4 {[%emt 0:05:17]} 29. Bxe5 {[%emt 0:00:10]}
Bxe5 {[%emt 0:00:01]} 30. Rac1 {[%emt 0:01:07]} Bd4+ {[%emt 0:01:16]} 31. Kh1 {
[%emt 0:00:15]} c3 {[%emt 0:02:16]} 32. bxc3 {[%emt 0:00:15]} Bxc3 {[%emt 0:00:
12]} 33. Red1 {[%emt 0:00:08]} Bd4 {[%emt 0:01:05]} 34. Qa4 {[%emt 0:01:02]}
Qf6 {[%emt 0:00:42]} 35. Qb3 {[%emt 0:00:28]} h5 {[%emt 0:00:40]} 36. Rd3 {
[%emt 0:00:47]} Kg7 {[%emt 0:01:04]} 37. Rf1 {[%emt 0:01:23]} Be3 {[%emt 0:01:
21]} 38. Rfd1 {[%emt 0:00:26]} Bd4 {[%emt 0:00:05]} 39. a3 {[%emt 0:01:04]} a5
{[%emt 0:00:47]} 40. axb4 {[%emt 0:00:30]} axb4 {[%emt 0:00:02]} 41. Qa2 {
[%emt 0:00:17]} Rf7 {[%emt 0:01:25]} 42. Bd5 {[%emt 0:00:12]} Re7 {[%emt 0:00:
34]} 43. Be6 {[%emt 0:00:04]} g4 {[%emt 0:01:08]} 44. fxg4 {[%emt 0:00:52]}
hxg4 {[%emt 0:00:01]} 45. Qe2 {[%emt 0:01:27]} Qxf5 {[%emt 0:00:23]} 46. Bxf5 {
[%emt 0:00:26]} Rxe2 {[%emt 0:00:03]} 47. Bxg4 {[%emt 0:00:03]} Re3 {[%emt 0:
01:26]} 48. R3d2 {[%emt 0:00:55]} b3 {[%emt 0:00:17]} 49. Bf5 {[%emt 0:00:03]}
Rde8 {[%emt 0:00:44]} 50. Kh2 {[%emt 0:00:24]} Re1 {[%emt 0:00:48]} 51. h4 {
[%emt 0:00:02]} b2 {[%emt 0:00:41]} 52. Bb1 {[%emt 0:00:15]} R8e2 {[%emt 0:00:
33]} 53. Kh3 {[%emt 0:00:47]} Rxd2 {[%emt 0:01:50]} 54. Rxe1 {[%emt 0:00:00]}
c4 {[%emt 0:00:01]} 55. Re7+ {[%emt 0:01:10]} Kf6 {[%emt 0:00:27]} 56. Rc7 {
[%emt 0:00:05]} c3 {[%emt 0:00:36]} 57. Bh7 {[%emt 0:00:10]} Rd1 {[%emt 0:00:
32]} 58. Kg4 {[%emt 0:02:06]} b1=Q {[%emt 0:00:14]} 59. Bxb1 {[%emt 0:00:03]}
Rxb1 {[%emt 0:00:01]} 60. h5 {[%emt 0:00:08]} Ke5 {[%emt 0:01:33]} 61. h6 {
[%emt 0:00:13]} Ke4 {[%emt 0:00:28]} 62. h7 {[%emt 0:00:13]} Rh1 {[%emt 0:00:
12]} 63. Kg5 {[%emt 0:00:42]} Kd3 {[%emt 0:00:12]} 64. Kxf4 {[%emt 0:00:07]} c2
{[%emt 0:00:16]} 65. g4 {[%emt 0:00:03]} Bc3 {[%emt 0:00:29]} 66. Rd7+ {[%emt
0:00:09]} Ke2 {[%emt 0:00:19]} 0-1

[Event "SPICE Cup 2014"]
[Site "St. Louis"]
[Date "2014.10.25"]
[Round "7"]
[White "Bora, Safal"]
[Black "Le, Quang Liem"]
[Result "0-1"]
[ECO "A37"]
[WhiteElo "2328"]
[BlackElo "2706"]
[PlyCount "60"]
[EventDate "2014.??.??"]
[EventCountry "USA"]
[TimeControl "5400+30"]
[WhiteClock "0:40:46"]
[BlackClock "1:09:10"]

1. Nf3 {[%emt 0:00:00]} g6 {[%emt 0:00:00]} 2. c4 {[%emt 0:00:24]} Bg7 {[%emt
0:00:18]} 3. g3 {[%emt 0:00:38]} c5 {[%emt 0:00:25]} 4. Bg2 {[%emt 0:00:05]}
Nc6 {[%emt 0:00:18]} 5. Nc3 {[%emt 0:00:05]} d6 {[%emt 0:00:36]} 6. O-O {[%emt
0:00:43]} Bf5 {[%emt 0:01:28]} 7. d3 {[%emt 0:00:22]} Qd7 {[%emt 0:00:26]} 8.
e3 {[%emt 0:00:15]} Nf6 {[%emt 0:06:05]} 9. d4 {[%emt 0:01:22]} Ne4 {[%emt 0:
04:10]} 10. Nxe4 {[%emt 0:07:28]} Bxe4 {[%emt 0:00:04]} 11. d5 {[%emt 0:01:27]}
Na5 {[%emt 0:02:12]} 12. Qe2 {[%emt 0:02:04]} b5 {[%emt 0:04:01]} 13. Nd2 {
[%emt 0:03:06]} Bxg2 {[%emt 0:00:16]} 14. Kxg2 {[%emt 0:00:05]} Rb8 {[%emt 0:
00:16]} 15. cxb5 {[%emt 0:02:13]} Qxb5 {[%emt 0:00:21]} 16. Qxb5+ {[%emt 0:01:
05]} Rxb5 {[%emt 0:00:09]} 17. Rb1 {[%emt 0:00:58]} c4 {[%emt 0:03:40]} 18. e4
{[%emt 0:24:31]} Kd7 {[%emt 0:00:17]} 19. b4 {[%emt 0:00:31]} Rhb8 {[%emt 0:00:
58]} 20. bxa5 {[%emt 0:01:01]} Rxb1 {[%emt 0:00:09]} 21. Nxb1 {[%emt 0:00:03]}
Rxb1 {[%emt 0:00:12]} 22. Be3 {[%emt 0:01:02]} Rb5 {[%emt 0:00:54]} 23. Rc1 {
[%emt 0:01:37]} c3 {[%emt 0:01:28]} 24. Kf1 {[%emt 0:01:49]} f5 {[%emt 0:00:49]
} 25. f3 {[%emt 0:07:03]} Rxa5 {[%emt 0:01:40]} 26. Rc2 {[%emt 0:00:28]} Ra4 {
[%emt 0:03:53]} 27. exf5 {[%emt 0:01:37]} gxf5 {[%emt 0:00:06]} 28. Ke2 {[%emt
0:00:23]} Ra5 {[%emt 0:00:10]} 29. Kd3 {[%emt 0:01:44]} Rxd5+ {[%emt 0:00:11]}
30. Kc4 {[%emt 0:00:05]} Rd1 {[%emt 0:00:18] Kd4} 0-1

[Event "SPICE Cup 2014"]
[Site "St. Louis"]
[Date "2014.10.25"]
[Round "7"]
[White "Corrales Jimenez, Fidel"]
[Black "Preotu, Razvan"]
[Result "1/2-1/2"]
[ECO "C67"]
[WhiteElo "2532"]
[BlackElo "2405"]
[PlyCount "110"]
[EventDate "2014.??.??"]
[EventCountry "USA"]
[TimeControl "5400+30"]
[WhiteClock "0:34:34"]
[BlackClock "0:17:43"]

1. e4 {[%emt 0:00:13]} e5 {[%emt 0:00:00]} 2. Nf3 {[%emt 0:00:06]} Nc6 {[%emt
0:00:00]} 3. Bb5 {[%emt 0:00:06]} Nf6 {[%emt 0:00:00]} 4. O-O {[%emt 0:00:10]}
Nxe4 {[%emt 0:00:10]} 5. d4 {[%emt 0:00:03]} Nd6 {[%emt 0:00:13]} 6. Bxc6 {
[%emt 0:00:22]} dxc6 {[%emt 0:00:11]} 7. dxe5 {[%emt 0:00:05]} Nf5 {[%emt 0:00:
13]} 8. Qxd8+ {[%emt 0:00:05]} Kxd8 {[%emt 0:00:08]} 9. Nc3 {[%emt 0:00:08]}
Ke8 {[%emt 0:00:22]} 10. b3 {[%emt 0:01:16]} Be6 {[%emt 0:02:29]} 11. Ne4 {
[%emt 0:05:08]} Rd8 {[%emt 0:01:14]} 12. Bb2 {[%emt 0:00:46]} h6 {[%emt 0:00:
54]} 13. Rad1 {[%emt 0:00:50]} b6 {[%emt 0:01:12]} 14. h3 {[%emt 0:00:37]} c5 {
[%emt 0:03:00]} 15. c4 {[%emt 0:00:07]} Ne7 {[%emt 0:09:49]} 16. Ng3 {[%emt 0:
03:40]} Nc6 {[%emt 0:02:07]} 17. Nh5 {[%emt 0:00:54]} Nb4 {[%emt 0:17:11]} 18.
a4 {[%emt 0:06:38]} Ke7 {[%emt 0:21:02]} 19. Rxd8 {[%emt 0:10:44]} Kxd8 {[%emt
0:00:07]} 20. Bc3 {[%emt 0:00:05]} Nc6 {[%emt 0:03:33]} 21. g4 {[%emt 0:00:41]}
g5 {[%emt 0:03:22]} 22. Rd1+ {[%emt 0:00:56]} Kc8 {[%emt 0:00:22]} 23. Kg2 {
[%emt 0:00:08]} Be7 {[%emt 0:05:27]} 24. Kg3 {[%emt 0:01:18]} Rg8 {[%emt 0:00:
53]} 25. Rd3 {[%emt 0:00:21]} a6 {[%emt 0:07:02]} 26. Nf6 {[%emt 0:01:51]} Bxf6
{[%emt 0:01:23]} 27. exf6 {[%emt 0:00:02]} b5 {[%emt 0:02:58]} 28. cxb5 {[%emt
0:12:53]} axb5 {[%emt 0:00:07]} 29. axb5 {[%emt 0:00:03]} Na7 {[%emt 0:00:14]}
30. Re3 {[%emt 0:00:12]} Nxb5 {[%emt 0:00:24]} 31. Bb2 {[%emt 0:00:04]} Rd8 {
[%emt 0:02:04]} 32. h4 {[%emt 0:02:43]} Nd4 {[%emt 0:02:08]} 33. hxg5 {[%emt 0:
02:16]} Nxf3 {[%emt 0:00:17]} 34. Rxf3 {[%emt 0:15:34]} hxg5 {[%emt 0:00:24]}
35. Rc3 {[%emt 0:00:14]} c4 {[%emt 0:01:07]} 36. bxc4 {[%emt 0:00:13]} Rd4 {
[%emt 0:00:09]} 37. f3 {[%emt 0:00:07]} Rxc4 {[%emt 0:00:25]} 38. Re3 {[%emt 0:
00:47]} Kd7 {[%emt 0:00:28]} 39. Re5 {[%emt 0:00:49]} Rc2 {[%emt 0:01:02]} 40.
Bd4 {[%emt 0:00:20]} Rd2 {[%emt 0:00:26]} 41. Be3 {[%emt 0:01:03]} Rd5 {[%emt
0:00:20]} 42. Rxd5+ {[%emt 0:00:05]} Bxd5 {[%emt 0:00:06]} 43. Bxg5 {[%emt 0:
00:04]} Ke8 {[%emt 0:01:31]} 44. Bf4 {[%emt 0:01:21]} Kf8 {[%emt 0:00:18]} 45.
Bxc7 {[%emt 0:00:06]} Kg8 {[%emt 0:00:05]} 46. f4 {[%emt 0:00:04]} Bc4 {[%emt
0:00:17]} 47. f5 {[%emt 0:00:05]} Bb3 {[%emt 0:00:05]} 48. Kf4 {[%emt 0:00:09]}
Ba2 {[%emt 0:00:13]} 49. Be5 {[%emt 0:00:18]} Bb3 {[%emt 0:00:12]} 50. Bc3 {
[%emt 0:00:02]} Bc4 {[%emt 0:00:22]} 51. Ke4 {[%emt 0:01:47]} Ba2 {[%emt 0:00:
12]} 52. Ke5 {[%emt 0:01:06]} Bb3 {[%emt 0:00:09]} 53. Kd6 {[%emt 0:01:19]} Bd1
{[%emt 0:00:17]} 54. g5 {[%emt 0:00:14]} Bc2 {[%emt 0:00:44]} 55. Ke5 {[%emt 0:
01:38]} Bb1 {[%emt 0:00:19] Ke4} 1/2-1/2